bitfinex-derivatives/quotes_BNBF0:USTF0_20260221
["timestamp","ask_amount","ask_price","bid_price","bid_amount"]
[1771638958966,0.27690251,628.93,628.57,0.31844972]
[1771638959170,0.27690251,628.93,628.58,0.31844972]
[1771638959367,0.27690251,628.93,628.59,0.31844972]
[1771638959669,0.27690251,628.93,628.6,0.31844972]
[1771638959867,0.27690251,628.93,628.61,0.31844972]
[1771638960069,0.27690251,628.93,628.62,0.31844972]
[1771638960270,0.27690251,628.93,628.63,0.31844972]
[1771638960468,0.27690251,628.93,628.64,0.31844972]
[1771638960671,0.27690251,628.93,628.65,0.31844972]
[1771638960868,0.27690251,628.93,628.49,1.25]
[1771638961073,0.27690251,628.93,628.5,0.31845036]
[1771638961268,0.27690251,628.93,628.51,0.31845036]
[1771638961470,0.27690251,628.93,628.52,0.31845036]
[1771638961772,0.27690251,628.93,628.53,0.31845036]
[1771638961970,0.27690251,628.93,628.54,0.31845036]
[1771638962168,0.27690251,628.93,628.55,0.31845036]
[1771638962373,0.27690251,628.93,628.56,0.31845036]
[1771638962572,0.27690251,628.93,628.57,0.31845036]
[1771638962772,0.27690251,628.93,628.58,0.31845036]
[1771638962973,0.27690251,628.93,628.59,0.31845036]
[1771638963173,0.27690251,628.93,628.6,0.31845036]
[1771638963374,0.27690251,628.93,628.61,0.31845036]
[1771638963574,0.27690251,628.93,628.62,0.31845036]
[1771638963769,0.27690251,628.93,628.63,0.31845036]
[1771638963971,0.27690251,628.93,628.64,0.31845036]
[1771638964172,1.58398061,628.91,628.65,0.31845036]
[1771638964474,1.58398061,628.91,628.49,1.25]
[1771638964674,1.58398061,628.91,628.5,0.31845023]
[1771638964869,1.58398061,628.91,628.51,0.31845023]
[1771638965073,1.58398061,628.91,628.52,0.31845023]
[1771638965374,1.58398061,628.91,628.53,0.31845023]
[1771638965673,1.58398061,628.91,628.54,0.31845023]
[1771638965871,1.58398061,628.91,628.55,0.31845023]
[1771638966070,1.58398061,628.91,628.56,0.31845023]
[1771638966274,1.58398061,628.9,628.57,0.31845023]
[1771638966569,1.58398061,628.9,628.58,0.31845023]
[1771638966774,1.58398061,628.9,628.59,0.31845023]
[1771638966971,1.58398061,628.9,628.6,0.31845023]
[1771638967171,1.58398061,628.9,628.61,0.31845023]
[1771638967368,1.58398061,628.9,628.62,0.31845023]
[1771638967571,1.58398061,628.9,628.63,0.31845023]
[1771638967771,1.58398061,628.9,628.64,0.31845023]
[1771638967969,1.58398061,628.9,628.65,0.31845023]
[1771638968271,1.58398061,628.89,628.49,1.25]
[1771638968574,1.58398061,628.89,628.5,0.31845023]
[1771638968771,1.58398061,628.89,628.51,0.31845023]
[1771638968971,1.58398061,628.89,628.52,0.31845023]
[1771638969173,1.58398061,628.89,628.53,0.31845023]
[1771638969373,1.58398061,628.89,628.54,0.31845023]
[1771638969576,1.58398061,628.89,628.55,0.31845023]
[1771638969772,1.58398061,628.89,628.56,0.31845023]
[1771638969976,1.58398061,628.89,628.57,0.31845023]
[1771638970271,1.58398061,628.87,628.58,0.31845023]
[1771638970477,1.58398061,628.87,628.59,0.31845023]
[1771638970673,1.58398061,628.87,628.6,0.31845023]
[1771638970877,1.58398061,628.87,628.61,0.31845023]
[1771638971077,1.58398061,628.87,628.62,0.31845023]
[1771638971376,1.58398061,628.86,628.63,0.31845023]
[1771638971577,1.58398061,628.86,628.64,0.31845023]
[1771638971774,1.58398061,628.86,628.65,0.31845023]
[1771638971973,1.58398061,628.86,628.66,0.31845023]
[1771638972273,1.58398061,628.83,628.67,0.31845023]
[1771638972477,1.58398061,628.83,628.68,0.31845023]
[1771638972678,1.58398061,628.83,628.69,0.31845023]
[1771638972978,1.58398061,628.83,628.7,0.31845017]
[1771638973277,1.58398061,628.83,628.71,0.31845017]
[1771638973478,1.58398061,628.83,628.14,1.1791254]
[1771638973674,1.58398061,628.83,628.15,0.31845017]
[1771638973873,1.58398061,628.83,628.16,0.31845017]
[1771638974077,1.58398061,628.83,628.17,0.31845017]
[1771638974275,1.58398061,628.89,628.2,1.1791254]
[1771638974476,1.58398061,628.89,628.21,0.31845017]
[1771638974675,1.58398061,628.89,628.22,0.31845017]
[1771638974878,1.58398061,628.89,628.23,0.31845017]
[1771638975178,1.58398061,628.89,628.24,0.31845017]
[1771638975378,1.58398061,628.89,628.25,0.31845017]
[1771638975575,1.58398061,628.89,628.26,0.31845017]
[1771638975778,1.58398061,628.89,628.27,0.31845017]
[1771638975980,1.58398061,628.89,628.28,0.31845017]
[1771638976180,1.58398061,628.89,628.29,0.31845017]
[1771638976380,1.58398061,628.89,628.3,0.31845017]
[1771638976580,1.58398061,628.89,628.31,0.31845017]
[1771638976880,1.58398061,628.89,628.32,0.31845017]
[1771638977081,1.58398061,628.89,628.33,0.31845017]
[1771638977278,1.58398061,628.89,628.34,0.31845017]
[1771638977477,1.58398061,628.89,628.35,0.31845017]
[1771638977681,1.58398061,628.89,628.36,0.31845017]
[1771638977977,1.58398061,628.89,628.37,0.31845017]
[1771638978180,1.58398061,628.88,628.38,0.31845017]
[1771638978478,1.58398061,628.88,628.39,0.31845017]
[1771638978677,1.58398061,628.88,628.4,0.31845017]
[1771638978881,1.58398061,628.88,628.41,0.31845017]
[1771638979083,1.58398061,628.88,628.42,0.31845017]
[1771638979380,1.58398061,628.88,628.43,0.31845017]
[1771638979581,1.58398061,628.88,628.44,0.31845017]
[1771638979776,1.58398061,628.88,628.45,0.31845017]
[1771638979980,1.58398061,628.88,628.46,0.31845017]
[1771638980177,1.58398061,628.88,628.47,0.31845017]
[1771638980381,1.58398061,628.88,628.48,0.31845017]
[1771638980579,1.58398061,628.88,628.49,0.31845017]
[1771638980785,1.58398061,628.88,628.5,0.31845017]
[1771638980983,1.58398061,628.88,628.51,0.31845017]
[1771638981186,1.58398061,628.88,628.52,0.31845017]
[1771638981384,1.58398061,628.88,628.53,0.31845017]
[1771638981587,1.58398061,628.88,628.54,0.31845017]
[1771638981783,1.58398061,628.88,628.55,0.31845017]
[1771638981987,1.58398061,628.88,628.32,1.066]
[1771638981988,1.58398061,628.88,628.56,0.31845017]
[1771638982189,1.58398061,628.88,628.57,0.31845017]
[1771638982388,1.58398061,628.88,628.58,0.31845017]
[1771638982684,1.58398061,628.88,628.59,0.31845017]
[1771638982888,1.58398061,628.88,628.6,0.31845017]
[1771638983185,1.58398061,628.87,628.61,0.31845017]
[1771638983387,1.58398061,628.87,628.62,0.31845017]
[1771638983587,1.58398061,628.87,628.63,0.31845017]
[1771638983785,1.58398061,628.87,628.64,0.31845017]
[1771638984084,1.58398061,628.87,628.65,0.31845017]
[1771638984286,0.27690251,628.93,628.32,1.066]
[1771638984287,1.58398061,628.9,628.66,0.31845017]
[1771638984489,1.58398061,628.9,628.67,0.31845017]
[1771638984689,1.58398061,628.9,628.68,0.31845017]
[1771638984885,1.58398061,628.9,628.69,0.31845017]
[1771638985091,1.58398061,628.9,628.7,0.31845017]
[1771638985284,1.58398061,628.9,628.71,0.31845017]
[1771638985586,1.58398061,628.9,628.72,0.31845017]
[1771638985789,1.58398061,628.9,628.73,0.31845017]
[1771638985987,1.58398061,628.9,628.74,0.31845017]
[1771638986188,1.58398061,628.9,628.75,0.31845017]
[1771638986389,1.58398061,628.9,628.76,0.31845017]
[1771638986593,1.58398061,628.9,628.32,1.066]
[1771638986790,1.58398061,628.9,628.33,0.31844966]
[1771638986994,1.58398061,628.9,628.34,0.31844966]
[1771638987288,1.58398061,628.9,628.35,0.31844966]
[1771638987491,1.58398061,628.9,628.36,0.31844966]
[1771638987694,1.58398061,628.9,628.32,1.066]
[1771638987695,1.58398061,628.9,628.37,0.31844966]
[1771638987893,1.58398061,628.9,628.38,0.31844966]
[1771638988096,1.58398061,628.9,628.39,0.31844966]
[1771638988288,1.58398061,628.9,628.4,0.31844966]
[1771638988491,1.58398061,628.9,628.41,0.31844966]
[1771638988692,1.58398061,628.9,628.42,0.31844966]
[1771638988895,1.58398061,628.9,628.43,0.31844966]
[1771638989092,1.58398061,628.9,628.44,0.31844966]
[1771638989390,1.58398061,628.9,628.45,0.31844966]
[1771638989593,1.58398061,628.9,628.46,0.31844966]
[1771638989796,1.58398061,628.9,628.47,0.31844966]
[1771638990095,1.58398061,628.9,628.48,0.31844966]
[1771638990293,1.58398061,628.9,628.49,0.31844966]
[1771638990596,1.58398061,628.9,628.5,0.31844966]
[1771638990893,1.58398061,628.9,628.51,0.31844966]
[1771638991091,1.58398061,628.9,628.52,0.31844966]
[1771638991292,1.58398061,628.9,628.53,0.31844966]
[1771638991495,1.58398061,628.9,628.54,0.31844966]
[1771638991694,1.58398061,628.9,628.55,0.31844966]
[1771638991896,1.58398061,628.9,628.56,0.31844966]
[1771638992197,1.58398061,628.9,628.57,0.31844966]
[1771638992497,1.58398061,628.9,628.32,1.066]
[1771638992498,1.58398061,628.9,628.58,0.31844966]
[1771638992694,1.58398061,628.9,628.59,0.31844966]
[1771638992898,1.58398061,628.9,628.6,0.31844966]
[1771638993102,1.58398061,628.9,628.61,0.31844966]
[1771638993394,1.58398061,628.9,628.62,0.31844966]
[1771638993596,1.58398061,628.9,628.63,0.31844966]
[1771638993800,1.58398061,628.9,628.64,0.31844966]
[1771638994099,1.58398061,628.9,628.65,0.31844966]
[1771638994296,1.58398061,628.87,628.66,0.31844966]
[1771638994497,1.58398061,628.87,628.32,1.066]
[1771638994498,1.58398061,628.87,628.67,0.31844966]
[1771638994698,1.58398061,628.87,628.32,1.066]
[1771638994897,1.58398061,628.87,628.33,0.31844927]
[1771638995098,1.58398061,628.87,628.34,0.31844927]
[1771638995399,1.58398061,628.87,628.35,0.31844927]
[1771638995594,1.58398061,628.87,628.36,0.31844927]
[1771638995799,1.58398061,628.87,628.37,0.31844927]
[1771638995998,1.58398061,628.87,628.38,0.31844927]
[1771638996198,1.58398061,628.87,628.39,0.31844927]
[1771638996498,1.58398061,628.87,628.4,0.31844927]
[1771638996698,1.58398061,628.87,628.41,0.31844927]
[1771638996999,1.58398061,628.87,628.42,0.31844927]
[1771638997198,1.58398061,628.87,628.43,0.31844927]
[1771638997401,1.58398061,628.87,628.44,0.31844927]
[1771638997600,1.58398061,628.87,628.45,0.31844927]
[1771638997798,1.58398061,628.87,628.46,0.31844927]
[1771638998000,1.58398061,628.87,628.47,0.31844927]
[1771638998198,1.58398061,628.87,628.48,0.31844927]
[1771638998403,1.58398061,628.87,628.49,0.31844927]
[1771638998599,1.58398061,628.87,628.5,0.31844927]
[1771638998807,1.58398061,628.87,628.51,0.31844927]
[1771638999004,1.58398061,628.87,628.52,0.31844927]
[1771638999208,1.58398061,628.87,628.53,0.31844927]
[1771638999407,1.58398061,628.87,628.54,0.31844927]
[1771638999607,1.58398061,628.87,628.55,0.31844927]
[1771638999807,1.58398061,628.87,628.56,0.31844927]
[1771639000002,1.58398061,628.87,628.57,0.31844927]
[1771639000207,1.58398061,628.87,628.58,0.31844927]
[1771639000406,1.58398061,628.87,628.59,0.31844927]
[1771639000606,1.58398061,628.87,628.6,0.31844927]
[1771639000908,1.58398061,628.87,628.61,0.31844927]
[1771639001107,1.58398061,628.87,628.62,0.31844927]
[1771639001305,1.58398061,628.87,628.63,0.31844927]
[1771639001508,1.58398061,628.87,628.64,0.31844927]
[1771639001709,1.58398061,628.87,628.65,0.31844927]
[1771639001909,1.58398061,628.87,628.66,0.31844927]
[1771639002110,1.58398061,628.87,628.67,0.31844927]
[1771639002406,1.58398061,628.87,628.32,1.066]
[1771639002610,1.58398061,628.87,628.33,0.31844934]
[1771639002909,1.58398061,628.87,628.34,0.31844934]
[1771639003105,1.58398061,628.87,628.35,0.31844934]
[1771639003307,1.58398061,628.87,628.36,0.31844934]
[1771639003509,1.58398061,628.87,628.37,0.31844934]
[1771639003705,1.58398061,628.87,628.38,0.31844934]
[1771639003908,1.58398061,628.87,628.39,0.31844934]
[1771639004106,1.58398061,628.87,628.4,0.31844934]
[1771639004304,1.58398061,628.83,628.41,0.31844934]
[1771639004511,1.58398061,628.83,628.42,0.31844934]
[1771639004809,1.58398061,628.83,628.43,0.31844934]
[1771639005012,1.58398061,628.83,628.44,0.31844934]
[1771639005211,1.58398061,628.83,628.45,0.31844934]
[1771639005512,1.58398061,628.83,628.46,0.31844934]
[1771639005708,1.58398061,628.49,628.32,1.066]
[1771639005913,1.58398061,628.59,628.32,1.066]
[1771639006311,1.58398061,628.63,628.32,1.066]
[1771639007112,1.19260924,628.5,628.32,1.066]
[1771639008216,1.19260924,628.51,628.32,1.066]
[1771639009221,1.19260924,628.52,628.32,1.066]
[1771639010121,1.19260924,628.53,628.32,1.066]
[1771639011217,2.37620719,628.76,628.32,1.066]
[1771639011218,1.19260924,628.54,628.32,1.066]
[1771639011820,1.19260924,628.58,628.32,1.066]
[1771639013118,1.19260924,628.59,628.32,1.066]
[1771639014025,1.19260924,628.59,627.82,1.18193785]
[1771639014225,1.19260924,628.66,627.9,1.18193785]
[1771639015325,1.19260924,628.67,627.89,1.18193785]
[1771639017429,1.19260924,628.67,627.9,1.318]
[1771639017629,1.19260924,628.67,627.91,0.31855026]
[1771639017829,1.19260924,628.67,627.92,0.31855026]
[1771639018029,1.19260924,628.67,627.93,0.31855026]
[1771639018233,1.19260924,628.68,627.94,0.31855026]
[1771639018429,1.19260924,628.68,627.95,0.31855026]
[1771639018628,1.19260924,628.68,627.96,0.31855026]
[1771639018831,1.19260924,628.68,627.97,0.31855026]
[1771639019031,1.19260924,628.68,627.98,0.31855026]
[1771639019228,1.19260924,628.68,627.99,0.31855026]
[1771639019531,1.19260924,628.68,628.0,0.31855026]
[1771639019829,1.19260924,628.68,628.01,0.31855026]
[1771639020028,1.19260924,628.67,628.02,0.31855026]
[1771639020229,1.19260924,628.65,628.03,0.31855026]
[1771639020532,1.19260924,628.65,628.04,0.31855026]
[1771639020827,1.19260924,628.65,628.05,0.31855026]
[1771639021031,1.19260924,628.65,628.06,0.31855026]
[1771639021226,1.19260924,628.65,628.07,0.31855026]
[1771639021426,1.19260924,628.65,628.08,0.31855026]
[1771639021629,1.19260924,628.65,628.09,0.31855026]
[1771639021828,1.19260924,628.65,628.1,0.31855026]
[1771639022029,1.19260924,628.65,628.11,0.31855026]
[1771639022229,1.19260924,628.65,628.12,0.31855026]
[1771639022432,1.19260924,628.65,628.13,0.31855026]
[1771639022632,1.19260924,628.65,628.14,0.31855026]
[1771639022829,1.19260924,628.65,628.15,0.31855026]
[1771639023028,1.19260924,628.65,628.16,0.31855026]
[1771639023230,1.19260924,628.65,628.17,0.31855026]
[1771639023429,1.19260924,628.65,628.18,0.31855026]
[1771639023629,1.19260924,628.65,628.19,0.31855026]
[1771639023832,1.19260924,628.65,628.2,0.31855026]
[1771639024132,1.19260924,628.66,628.21,0.31855026]
[1771639024335,1.19260924,628.67,628.22,0.31855026]
[1771639024533,1.19260924,628.67,628.23,0.31855026]
[1771639024736,1.19260924,628.67,628.24,0.31855026]
[1771639024936,1.19260924,628.67,628.25,0.31855026]
[1771639025136,1.19260924,628.67,628.26,0.31855026]
[1771639025432,1.19260924,628.67,628.27,0.31855026]
[1771639025636,1.19260924,628.67,628.28,0.31855026]
[1771639025838,1.19260924,628.67,628.29,0.31855026]
[1771639026034,1.19260924,628.67,628.3,0.31855026]
[1771639026237,1.19260924,628.67,628.31,0.31855026]
[1771639026435,1.19260924,628.67,628.32,0.31855026]
[1771639026634,1.19260924,628.67,628.33,0.31855026]
[1771639026835,1.19260924,628.67,628.34,0.31855026]
[1771639027040,1.19260924,628.67,628.35,0.31855026]
[1771639027242,1.19260924,628.67,628.36,0.31855026]
[1771639027440,1.19260924,628.67,628.37,0.31855026]
[1771639027638,1.19260924,628.67,628.38,0.31855026]
[1771639027838,1.19260924,628.67,628.39,0.31855026]
[1771639028140,1.19260924,628.67,628.4,0.31855026]
[1771639028338,1.19260924,628.67,627.9,1.318]
[1771639028538,1.19260924,628.67,627.91,0.3185676]
[1771639028740,1.19260924,628.67,627.92,0.3185676]
[1771639028942,1.19260924,628.67,627.9,1.318]
[1771639028943,1.19260924,628.67,627.93,0.3185676]
[1771639029236,1.19260924,628.67,627.94,0.3185676]
[1771639029437,1.19260924,628.67,627.95,0.3185676]
[1771639029635,1.19260924,628.67,627.96,0.3185676]
[1771639029839,1.19260924,628.67,627.97,0.3185676]
[1771639030037,1.19260924,628.67,627.98,0.3185676]
[1771639030243,1.19260924,628.67,627.99,0.3185676]
[1771639030441,1.19260924,628.67,628.0,0.3185676]
[1771639030642,1.19260924,628.67,628.01,0.3185676]
[1771639030842,1.19260924,628.67,628.02,0.3185676]
[1771639031041,1.19260924,628.67,628.03,0.3185676]
[1771639031338,1.19260924,628.67,628.04,0.3185676]
[1771639031537,1.19260924,628.67,628.05,0.3185676]
[1771639031737,1.19260924,628.67,628.06,0.3185676]
[1771639032042,1.19260924,628.67,628.07,0.3185676]
[1771639032240,1.19260924,628.67,628.08,0.3185676]
[1771639032440,1.19260924,628.67,628.09,0.3185676]
[1771639032639,1.19260924,628.67,627.9,1.318]
[1771639032640,1.19260924,628.67,628.1,0.3185676]
[1771639032841,1.19260924,628.67,628.11,0.3185676]
[1771639033042,1.19260924,628.67,628.12,0.3185676]
[1771639033240,1.19260924,628.67,628.13,0.3185676]
[1771639033446,1.19260924,628.67,628.14,0.3185676]
[1771639033640,1.19260924,628.67,628.15,0.3185676]
[1771639033844,1.19260924,628.67,628.16,0.3185676]
[1771639034042,1.19260924,628.67,628.17,0.3185676]
[1771639034241,1.19260924,628.64,628.18,0.3185676]
[1771639034545,1.19260924,628.64,628.19,0.3185676]
[1771639034744,1.19260924,628.64,628.2,0.3185676]
[1771639034945,1.19260924,628.64,628.21,0.3185676]
[1771639035141,1.19260924,628.63,628.22,0.3185676]
[1771639035441,1.19260924,628.63,628.23,0.3185676]
[1771639035641,1.19260924,628.63,628.24,0.3185676]
[1771639035845,1.19260924,628.63,628.25,0.3185676]
[1771639036145,1.19260924,628.63,628.26,0.3185676]
[1771639036346,1.19260924,628.63,628.27,0.3185676]
[1771639036545,1.19260924,628.63,628.28,0.3185676]
[1771639036741,1.19260924,628.63,627.9,1.318]
[1771639036742,1.19260924,628.63,628.29,0.3185676]
[1771639037042,1.19260924,628.63,628.3,0.3185676]
[1771639037243,1.19260924,628.63,628.31,0.3185676]
[1771639037442,1.19260924,628.63,628.32,0.3185676]
[1771639037643,1.19260924,628.63,628.33,0.3185676]
[1771639037842,1.19260924,628.63,628.34,0.3185676]
[1771639038146,1.19260924,628.63,628.35,0.3185676]
[1771639038344,1.19260924,628.63,628.36,0.3185676]
[1771639038547,1.19260924,628.63,628.37,0.3185676]
[1771639038748,1.19260924,628.63,628.38,0.3185676]
[1771639039047,1.19260924,628.63,628.39,0.31856734]
[1771639039244,1.19260924,628.62,627.9,1.318]
[1771639039544,1.19260924,628.62,627.91,0.31856741]
[1771639039743,1.19260924,628.62,627.92,0.31856741]
[1771639039944,1.19260924,628.62,627.93,0.31856741]
[1771639040248,1.19260924,628.62,627.94,0.31856741]
[1771639040447,1.19260924,628.62,627.95,0.31856741]
[1771639040647,1.19260924,628.62,627.96,0.31856741]
[1771639040847,1.19260924,628.62,627.97,0.31856741]
[1771639041043,1.19260924,628.62,627.98,0.31856741]
[1771639041250,1.19260924,628.62,627.99,0.31856741]
[1771639041450,1.19260924,628.62,628.0,0.31856741]
[1771639041646,1.19260924,628.62,628.01,0.31856741]
[1771639041846,1.19260924,628.62,628.02,0.31856741]
[1771639042045,1.19260924,628.62,628.03,0.31856741]
[1771639042250,1.19260924,628.61,628.04,0.31856741]
[1771639042449,1.19260924,628.61,628.05,0.31856741]
[1771639042648,1.19260924,628.61,628.06,0.31856741]
[1771639042847,1.19260924,628.61,628.07,0.31856741]
[1771639043151,1.19260924,628.61,628.08,0.31856741]
[1771639043347,1.19260924,628.6,628.09,0.31856741]
[1771639043547,1.19260924,628.6,628.1,0.31856741]
[1771639043746,1.19260924,628.6,628.11,0.31856741]
[1771639044050,1.19260924,628.6,628.12,0.31856741]
[1771639044254,1.19260924,628.61,628.13,0.31856741]
[1771639044447,1.19260924,628.61,628.14,0.31856741]
[1771639044651,1.19260924,628.61,628.15,0.31856741]
[1771639044848,1.19260924,628.61,628.16,0.31856741]
[1771639045052,1.19260924,628.61,628.17,0.31856741]
[1771639045353,1.19260924,628.6,628.18,0.31856741]
[1771639045647,1.19260924,628.6,628.19,0.31856741]
[1771639045852,1.19260924,628.6,628.2,0.31856741]
[1771639046154,1.19260924,628.6,628.21,0.31856741]
[1771639046352,1.19260924,628.6,628.22,0.31856741]
[1771639046550,1.19260924,628.6,628.23,0.31856741]
[1771639046757,1.19260924,628.6,628.24,0.31856741]
[1771639047057,1.19260924,628.59,628.25,0.31856741]
[1771639047256,1.19260924,628.59,628.26,0.31856741]
[1771639047457,1.19260924,628.59,628.27,0.31856741]
[1771639047756,1.19260924,628.6,628.28,0.31856741]
[1771639047954,1.19260924,628.6,628.29,0.31856741]
[1771639048153,1.19260924,628.58,628.3,0.31856741]
[1771639048353,1.19260924,628.58,628.31,0.31856741]
[1771639048555,1.19260924,628.58,628.32,0.31856741]
[1771639048758,1.19260924,628.58,628.33,0.31856741]
[1771639048959,1.19260924,628.58,628.34,0.31856741]
[1771639049155,1.19260924,628.57,628.35,0.31856741]
[1771639049354,1.19260924,628.57,628.36,0.31856741]
[1771639049554,1.19260924,628.57,628.37,0.31856741]
[1771639049756,1.19260924,628.57,628.38,0.31856741]
[1771639049959,1.19260924,628.57,628.39,0.31856741]
[1771639050262,1.19260924,628.54,628.4,0.31856741]
[1771639050556,1.19260924,628.54,628.41,0.31856741]
[1771639050756,1.19260924,628.54,628.42,0.31856741]
[1771639050958,1.19260924,628.54,628.43,0.31856741]
[1771639051159,1.19260924,628.54,628.44,0.31856741]
[1771639051357,1.19260924,628.52,628.45,0.31856741]
[1771639051561,1.19260924,628.52,627.95,1.18193785]
[1771639051758,1.19260924,628.52,627.96,0.31857508]
[1771639052056,1.19260924,628.52,627.97,0.31857508]
[1771639052260,1.19260924,628.52,627.98,0.31857508]
[1771639052459,1.19260924,628.51,627.99,0.31857508]
[1771639052657,1.19260924,628.51,628.0,0.31857508]
[1771639052862,1.19260924,628.51,628.01,0.31857508]
[1771639053062,1.19260924,628.51,628.02,0.31857508]
[1771639053258,1.19260924,628.51,628.03,0.31857508]
[1771639053462,1.19260924,628.49,628.04,0.31857508]
[1771639053663,1.19260924,628.49,628.05,0.31857508]
[1771639053864,1.19260924,628.49,628.06,0.31857508]
[1771639054064,1.19260924,628.49,628.07,0.31857508]
[1771639054265,1.19260924,628.48,628.08,0.31858937]
[1771639054460,1.19260924,628.48,628.09,0.31858937]
[1771639054660,1.19260924,628.47,628.1,0.31858937]
[1771639054861,1.19260924,628.47,628.11,0.31858937]
[1771639055062,1.19260924,628.46,628.12,0.31858937]
[1771639055266,1.19260924,628.46,628.13,0.31858937]
[1771639055464,1.19260924,628.46,628.14,0.31858937]
[1771639055666,1.19260924,628.46,628.15,0.31858937]
[1771639055862,1.19260924,628.46,628.16,0.31858937]
[1771639056066,1.19260924,628.46,628.17,0.31858937]
[1771639056265,1.19260924,628.47,628.18,0.31858937]
[1771639056566,1.19260924,628.47,628.19,0.31858937]
[1771639056765,1.19260924,628.47,628.2,0.31858937]
[1771639056963,1.19260924,628.47,628.21,0.31858937]
[1771639057161,1.19260924,628.46,628.22,0.31858937]
[1771639057364,1.19260924,628.47,628.23,0.31858937]
[1771639057562,1.19260924,628.47,628.24,0.31858937]
[1771639057767,1.19260924,628.47,628.25,0.31858937]
[1771639058065,1.19260924,628.47,628.26,0.31858937]
[1771639058267,1.19260924,628.47,628.27,0.31858937]
[1771639058464,1.19260924,628.47,628.28,0.31858937]
[1771639058669,1.19260924,628.47,628.29,0.31858937]
[1771639058870,1.19260924,628.47,628.3,0.31858937]
[1771639059165,1.19260924,628.47,628.31,0.31858937]
[1771639059368,1.19260924,628.45,628.32,0.31858937]
[1771639059565,1.19260924,628.45,628.33,0.31858937]
[1771639059868,1.19260924,628.45,628.34,0.31858937]
[1771639060068,1.19260924,628.45,628.35,0.31858937]
[1771639060268,1.19260924,628.45,628.36,0.31858937]
[1771639060468,1.19260924,628.45,628.37,0.31858937]
[1771639060669,1.19260924,628.45,628.38,0.31858937]
[1771639060868,1.19260924,628.45,628.39,0.31858937]
[1771639061172,1.19260924,628.45,628.4,0.31858937]
[1771639061467,1.19260924,628.45,628.41,0.31858937]
[1771639061767,1.19260924,628.45,628.42,0.31858937]
[1771639061971,1.19260924,628.45,627.9,1.318]
[1771639062272,1.19260924,628.45,627.91,0.31860983]
[1771639062472,1.19260924,628.45,627.92,0.31860983]
[1771639062672,1.19260924,628.45,627.93,0.31860983]
[1771639062872,1.19260924,628.45,627.94,0.31860983]
[1771639063072,1.19260924,628.45,627.95,0.31860983]
[1771639063272,1.19260924,628.45,627.96,0.31860983]
[1771639063470,1.19260924,628.45,627.97,0.31860983]
[1771639063670,1.19260924,628.45,627.98,0.31860983]
[1771639063873,1.19260924,628.45,627.99,0.31860983]
[1771639064072,1.19260924,628.45,627.9,1.318]
[1771639064073,1.19260924,628.45,628.0,0.31860983]
[1771639064272,1.19260924,628.49,628.01,0.31860983]
[1771639064471,1.19260924,628.49,628.02,0.31860983]
[1771639064673,1.19260924,628.49,628.03,0.31860983]
[1771639064875,1.19260924,628.49,628.04,0.31860983]
[1771639065075,1.19260924,628.49,628.05,0.31860983]
[1771639065273,1.19260924,628.49,628.06,0.31860983]
[1771639065475,1.19260924,628.49,628.07,0.31860983]
[1771639065673,1.19260924,628.49,628.08,0.31860983]
[1771639065877,1.19260924,628.49,628.09,0.31860983]
[1771639066174,1.19260924,628.49,628.1,0.31860983]
[1771639066376,1.19260924,628.49,628.11,0.31860983]
[1771639066576,1.19260924,628.49,627.87,1.18193785]
[1771639066577,1.19260924,628.49,628.12,0.31860983]
[1771639066773,1.19260924,628.49,628.13,0.31860983]
[1771639066972,1.19260924,628.49,628.14,0.31860983]
[1771639067177,1.19260924,628.49,628.15,0.31860983]
[1771639067472,1.19260924,628.5,628.16,0.31860983]
[1771639067772,1.19260924,628.5,628.17,0.31860983]
[1771639067976,1.19260924,628.5,628.18,0.31860983]
[1771639068274,1.19260924,628.5,628.19,0.31860983]
[1771639068473,1.19260924,628.5,628.2,0.31860983]
[1771639068678,1.19260924,628.5,628.21,0.31860983]
[1771639068879,1.19260924,628.5,628.22,0.31860983]
[1771639069080,1.19260924,628.5,628.23,0.31860983]
[1771639069280,1.19260924,628.5,628.24,0.31860983]
[1771639069476,1.19260924,628.5,628.25,0.31860983]
[1771639069676,1.19260924,628.5,628.26,0.31860983]
[1771639069879,1.19260924,628.5,628.27,0.31860983]
[1771639070179,1.19260924,628.5,628.28,0.31860983]
[1771639070480,1.19260924,628.5,628.29,0.31860983]
[1771639070780,1.19260924,628.5,628.3,0.31860983]
[1771639070978,1.19260924,628.5,628.31,0.31860983]
[1771639071178,1.19260924,628.5,628.32,0.31860983]
[1771639071377,1.19260924,628.5,628.33,0.31860983]
[1771639071577,1.19260924,628.5,628.34,0.31860983]
[1771639071876,1.19260924,628.5,628.35,0.31860983]
[1771639072079,1.19260924,628.5,628.36,0.31860983]
[1771639072276,1.19260924,628.5,628.37,0.31860983]
[1771639072481,1.19260924,628.5,628.38,0.31860983]
[1771639072778,1.19260924,628.5,628.39,0.31860983]
[1771639072981,1.19260924,628.5,628.4,0.31860983]
[1771639073177,1.19260924,628.5,628.19,0.946]
[1771639073375,1.19260924,628.5,628.2,0.31860976]
[1771639073581,1.19260924,628.5,628.21,0.31860976]
[1771639073881,1.19260924,628.5,628.22,0.31860976]
[1771639074081,1.19260924,628.5,628.23,0.31860976]
[1771639074377,1.19260924,628.48,628.24,0.31860976]